{"text_format":"1","workbook":"xlsx","n_sheets":7,"sheets":["Teacher Input","Round 1","Round 2","Round 3","Round 4","X","Answers"],"not_rendered":{"charts":0,"images":0,"macros":1,"external_links":0,"defined_names":6,"comments":0,"pivot_tables":0},"unopened":[],"bounds":{"document_bytes":16777216,"sheet_cells":100000,"rows_first":2000,"rows_last":500,"rows_between":2000,"halvings":0,"cell_chars":16384,"cell_head_chars":4096},"cells_cut":0,"cells_raw":0,"read":"whole","date_system":"1900"}

{"sheet":"Teacher Input","index":0,"n_rows":6,"n_cols":11,"rows_kept":6,"cut":false,"hidden":false,"merged":[]}
[]
[null,"Team #1","Team #2","Team #3","Team #4","Team #5","Team #6","Team #7","Team #8","Team #9","Team #10"]
["Clue 1"]
["Clue 2"]
["Clue 3"]
["Clue 4"]

{"sheet":"Round 1","index":1,"n_rows":6,"n_cols":6,"rows_kept":6,"cut":false,"hidden":false,"merged":[[0,0,0,1],[0,2,0,5]]}
["Reveal",null,"ROUND #1               "]
[2,"Team 1",{"$f":"IF(A1=\"hide\",\"\",IFERROR(VLOOKUP('Teacher Input'!B3, X!$A$3:$K$10,A2, FALSE),\"\"))","v":""},{"$f":"A6+1","v":7},"Team 6",{"$f":"IF(A1=\"hide\",\"\",IFERROR(VLOOKUP('Teacher Input'!G3, X!$A$3:$K$10,D2, FALSE),\"\"))","v":""}]
[{"$f":"A2+1","v":3},"Team 2",{"$f":"IF(A1=\"hide\",\"\",IFERROR(VLOOKUP('Teacher Input'!C3, X!$A$3:$K$10,A3, FALSE),\"\"))","v":""},{"$f":"D2+1","v":8},"Team 7",{"$f":"IF(A1=\"hide\",\"\",IFERROR(VLOOKUP('Teacher Input'!H3, X!$A$3:$K$10,D3, FALSE),\"\"))","v":""}]
[{"$f":"A3+1","v":4},"Team 3",{"$f":"IF(A1=\"hide\",\"\",IFERROR(VLOOKUP('Teacher Input'!D3, X!$A$3:$K$10,A4, FALSE),\"\"))","v":""},{"$f":"D3+1","v":9},"Team 8",{"$f":"IF(A1=\"hide\",\"\",IFERROR(VLOOKUP('Teacher Input'!I3, X!$A$3:$K$10,D4, FALSE),\"\"))","v":""}]
[5,"Team 4",{"$f":"IF(A1=\"hide\",\"\",IFERROR(VLOOKUP('Teacher Input'!E3, X!$A$3:$K$10,A5, FALSE),\"\"))","v":""},{"$f":"D4+1","v":10},"Team 9",{"$f":"IF(A1=\"hide\",\"\",IFERROR(VLOOKUP('Teacher Input'!J3, X!$A$3:$K$10,D5, FALSE),\"\"))","v":""}]
[6,"Team 5",{"$f":"IF(A1=\"hide\",\"\",IFERROR(VLOOKUP('Teacher Input'!F3, X!$A$3:$K$10,A6, FALSE),\"\"))","v":""},{"$f":"D5+1","v":11},"Team 10",{"$f":"IF(A1=\"hide\",\"\",IFERROR(VLOOKUP('Teacher Input'!K3, X!$A$3:$K$10,D6, FALSE),\"\"))","v":""}]

{"sheet":"Round 2","index":2,"n_rows":6,"n_cols":6,"rows_kept":6,"cut":false,"hidden":false,"merged":[[0,0,0,1],[0,2,0,5]]}
["Reveal",null,"ROUND #2               "]
[2,"Team 1",{"$f":"IF(A1=\"hide\",\"\",IFERROR(VLOOKUP('Teacher Input'!B4, X!$A$3:$K$10,A2, FALSE),\"\"))","v":""},{"$f":"A6+1","v":7},"Team 6",{"$f":"IF(A1=\"hide\",\"\",IFERROR(VLOOKUP('Teacher Input'!G4, X!$A$3:$K$10,D2, FALSE),\"\"))","v":""}]
[{"$f":"A2+1","v":3},"Team 2",{"$f":"IF(A1=\"hide\",\"\",IFERROR(VLOOKUP('Teacher Input'!C4, X!$A$3:$K$10,A3, FALSE),\"\"))","v":""},{"$f":"D2+1","v":8},"Team 7",{"$f":"IF(A1=\"hide\",\"\",IFERROR(VLOOKUP('Teacher Input'!H4, X!$A$3:$K$10,D3, FALSE),\"\"))","v":""}]
[{"$f":"A3+1","v":4},"Team 3",{"$f":"IF(A1=\"hide\",\"\",IFERROR(VLOOKUP('Teacher Input'!D4, X!$A$3:$K$10,A4, FALSE),\"\"))","v":""},{"$f":"D3+1","v":9},"Team 8",{"$f":"IF(A1=\"hide\",\"\",IFERROR(VLOOKUP('Teacher Input'!I4, X!$A$3:$K$10,D4, FALSE),\"\"))","v":""}]
[5,"Team 4",{"$f":"IF(A1=\"hide\",\"\",IFERROR(VLOOKUP('Teacher Input'!E4, X!$A$3:$K$10,A5, FALSE),\"\"))","v":""},{"$f":"D4+1","v":10},"Team 9",{"$f":"IF(A1=\"hide\",\"\",IFERROR(VLOOKUP('Teacher Input'!J4, X!$A$3:$K$10,D5, FALSE),\"\"))","v":""}]
[6,"Team 5",{"$f":"IF(A1=\"hide\",\"\",IFERROR(VLOOKUP('Teacher Input'!F4, X!$A$3:$K$10,A6, FALSE),\"\"))","v":""},{"$f":"D5+1","v":11},"Team 10",{"$f":"IF(A1=\"hide\",\"\",IFERROR(VLOOKUP('Teacher Input'!K4, X!$A$3:$K$10,D6, FALSE),\"\"))","v":""}]

{"sheet":"Round 3","index":3,"n_rows":6,"n_cols":6,"rows_kept":6,"cut":false,"hidden":false,"merged":[[0,0,0,1],[0,2,0,5]]}
["Reveal",null,"ROUND #3               "]
[2,"Team 1",{"$f":"IF(A1=\"hide\",\"\",IFERROR(VLOOKUP('Teacher Input'!B5, X!$A$3:$K$10,A2, FALSE),\"\"))","v":""},{"$f":"A6+1","v":7},"Team 6",{"$f":"IF(A1=\"hide\",\"\",IFERROR(VLOOKUP('Teacher Input'!G5, X!$A$3:$K$10,D2, FALSE),\"\"))","v":""}]
[{"$f":"A2+1","v":3},"Team 2",{"$f":"IF(A1=\"hide\",\"\",IFERROR(VLOOKUP('Teacher Input'!C5, X!$A$3:$K$10,A3, FALSE),\"\"))","v":""},{"$f":"D2+1","v":8},"Team 7",{"$f":"IF(A1=\"hide\",\"\",IFERROR(VLOOKUP('Teacher Input'!H5, X!$A$3:$K$10,D3, FALSE),\"\"))","v":""}]
[{"$f":"A3+1","v":4},"Team 3",{"$f":"IF(A1=\"hide\",\"\",IFERROR(VLOOKUP('Teacher Input'!D5, X!$A$3:$K$10,A4, FALSE),\"\"))","v":""},{"$f":"D3+1","v":9},"Team 8",{"$f":"IF(A1=\"hide\",\"\",IFERROR(VLOOKUP('Teacher Input'!I5, X!$A$3:$K$10,D4, FALSE),\"\"))","v":""}]
[5,"Team 4",{"$f":"IF(A1=\"hide\",\"\",IFERROR(VLOOKUP('Teacher Input'!E5, X!$A$3:$K$10,A5, FALSE),\"\"))","v":""},{"$f":"D4+1","v":10},"Team 9",{"$f":"IF(A1=\"hide\",\"\",IFERROR(VLOOKUP('Teacher Input'!J5, X!$A$3:$K$10,D5, FALSE),\"\"))","v":""}]
[6,"Team 5",{"$f":"IF(A1=\"hide\",\"\",IFERROR(VLOOKUP('Teacher Input'!F5, X!$A$3:$K$10,A6, FALSE),\"\"))","v":""},{"$f":"D5+1","v":11},"Team 10",{"$f":"IF(A1=\"hide\",\"\",IFERROR(VLOOKUP('Teacher Input'!K5, X!$A$3:$K$10,D6, FALSE),\"\"))","v":""}]

{"sheet":"Round 4","index":4,"n_rows":6,"n_cols":6,"rows_kept":6,"cut":false,"hidden":false,"merged":[[0,0,0,1],[0,2,0,5]]}
["Reveal",null,"ROUND #4               "]
[2,"Team 1",{"$f":"IF(A1=\"hide\",\"\",IFERROR(VLOOKUP('Teacher Input'!B6, X!$A$3:$K$10,A2, FALSE),\"\"))","v":""},{"$f":"A6+1","v":7},"Team 6",{"$f":"IF(A1=\"hide\",\"\",IFERROR(VLOOKUP('Teacher Input'!G6, X!$A$3:$K$10,D2, FALSE),\"\"))","v":""}]
[{"$f":"A2+1","v":3},"Team 2",{"$f":"IF(A1=\"hide\",\"\",IFERROR(VLOOKUP('Teacher Input'!C6, X!$A$3:$K$10,A3, FALSE),\"\"))","v":""},{"$f":"D2+1","v":8},"Team 7",{"$f":"IF(A1=\"hide\",\"\",IFERROR(VLOOKUP('Teacher Input'!H6, X!$A$3:$K$10,D3, FALSE),\"\"))","v":""}]
[{"$f":"A3+1","v":4},"Team 3",{"$f":"IF(A1=\"hide\",\"\",IFERROR(VLOOKUP('Teacher Input'!D6, X!$A$3:$K$10,A4, FALSE),\"\"))","v":""},{"$f":"D3+1","v":9},"Team 8",{"$f":"IF(A1=\"hide\",\"\",IFERROR(VLOOKUP('Teacher Input'!I6, X!$A$3:$K$10,D4, FALSE),\"\"))","v":""}]
[5,"Team 4",{"$f":"IF(A1=\"hide\",\"\",IFERROR(VLOOKUP('Teacher Input'!E6, X!$A$3:$K$10,A5, FALSE),\"\"))","v":""},{"$f":"D4+1","v":10},"Team 9",{"$f":"IF(A1=\"hide\",\"\",IFERROR(VLOOKUP('Teacher Input'!J6, X!$A$3:$K$10,D5, FALSE),\"\"))","v":""}]
[6,"Team 5",{"$f":"IF(A1=\"hide\",\"\",IFERROR(VLOOKUP('Teacher Input'!F6, X!$A$3:$K$10,A6, FALSE),\"\"))","v":""},{"$f":"D5+1","v":11},"Team 10",{"$f":"IF(A1=\"hide\",\"\",IFERROR(VLOOKUP('Teacher Input'!K6, X!$A$3:$K$10,D6, FALSE),\"\"))","v":""}]

{"sheet":"X","index":5,"n_rows":13,"n_cols":11,"rows_kept":13,"cut":false,"hidden":false,"merged":[]}
[]
[null,"Coal","Natural Gas","Biomass","Petroleum","Solar","Geothermal","Propane","Uranium","Wind","Hydropower"]
["A","It generates about three-tenths of U.S. electricity.","It generates more than one-third of U.S. electricity.","It generates a small amount of U.S. electricity.","It is used mostly as a transportation fuel.","It generates a very small amount of U.S. electricity.","It generates a very small amount of U.S. electricity.","It can be used as a transportation fuel.","It was first used commercially in 1957.","It generates a small to moderate amount of U.S. electricity.","It generates a small to moderate amount of U.S. electricity."]
["B","A small percent of U.S. production is exported.","It is a fossil fuel.","It is renewable.","Slightly more than half of what the U.S. consumes is imported.","It is renewable.","It is renewable.","It is nonrenewable.","It is nonrenewable.","It is renewable.","It is renewable."]
["C","The U.S. has the largest amount of known reserves.","It is nonrenewable.","Methane gas can be made from it.","It is nonrenewable.","It is free to use, but you must build and maintain its equipment.","Most energy production is in western states.","It is a by-product of natural gas and crude oil processing.","The U.S. Navy uses it to fuel some submarines and vessels.","It is free to use, but you must build and maintain its equipment.","It supplies a small amount of total U.S. energy consumed."]
["D","It is a fossil fuel.","Is used most by the electric power sector.","Burning it can produce air pollution.","It generates a very small amount of U.S. electricity.","It can be used to directly heat buildings with specialized materials.","It supplies a very small amount of total U.S. energy consumed.","It is a colorless and odorless gas.","There are 99 reactors in 61 locations in the U.S.","Texas is the leading producer.","There are more than 2,200 generating locations in the U.S."]
["E","It is transported mostly by train.","It is a colorless and odorless gas.","It gets its energy from photosynthesis.","It is the leading supplier of U.S. energy","It supplies a very small amount of total U.S. energy consumed.","It is used for generating electricity and heating.","It is often used in rural and suburban areas.","The majority of its supply is imported.","Using it doesn’t produce air pollution.","Production facilities may disturb large areas of land."]
["F","It supplies less than one-sixth of total U.S. energy consumed.","It supplies more than one-fourth of total U.S. energy consumed.","It supplies a small amount of total U.S. energy consumed.","It is a fossil fuel.","It cannot provide energy all of the time.","Its energy is a result of radioactive decay and pressure.","It supplies a small amount of total U.S. energy consumed.","Its waste products are stored at the power plant.","It supplies a small amount of total U.S. energy consumed.","It was first used to generate electricity in Appleton, WI in 1882."]
["G","Burning it can produce air pollution.","It is a cleaner-burning fossil fuel.","Forty-two percent of its energy production is from wood.","About eighteen percent of U.S. production is from offshore wells.","Its energy is a result of a nuclear reaction.","It is used to heat buildings directly with heat exchange units.","It turns into a liquid under moderate pressure.","Using it doesn’t produce air pollution.","Its production facilities require lots of land.","It is free to use, but you must build and maintain its equipment."]
["H","Western states and some Appalachian states are among the major producers.","It can be used as a transportation fuel.","It can be made into a transportation fuel.","Burning it can produce air pollution.","Photovoltaic cells convert it into electricity.","It is free to use, but you must build and maintain its equipment.","It is a cleaner-burning fossil fuel.","It generates almost one-fifth of U.S. electricity.","It cannot provide electricity all of the time.","Using it doesn’t produce air pollution."]
[]
[]
[null,"Reveal","Hide"]

{"sheet":"Answers","index":6,"n_rows":5,"n_cols":5,"rows_kept":5,"cut":false,"hidden":false,"merged":[]}
["TEAM 1","COAL",null,"TEAM 6","GEOTHERMAL"]
["TEAM 2","NATURAL GAS",null,"TEAM 7","PROPANE"]
["TEAM 3","BIOMASS",null,"TEAM 8","URANIUM"]
["TEAM 4","PETROLEUM",null,"TEAM 9","WIND"]
["TEAM 5","SOLAR",null,"TEAM 10","HYDROPOWER"]